bitfinex/quotes_BTCUSD_20230108
["timestamp","ask_amount","ask_price","bid_price","bid_amount"]
[1673193233375,3.13268785,17020.0,17019.0,0.16851583]
[1673193234166,3.13278157,17020.0,17019.0,0.04]
[1673193234417,2.69344327,17020.0,17019.0,0.04]
[1673193234673,3.13277894,17020.0,17019.0,0.04007571]
[1673193234922,3.13277894,17020.0,17019.0,0.04]
[1673193235705,3.13277894,17020.0,17019.0,0.04007571]
[1673193235935,2.69344327,17020.0,17019.0,0.04]
[1673193236186,3.60221272,17020.0,17019.0,0.04]
[1673193236430,3.22125439,17020.0,17019.0,0.04]
[1673193239944,2.69343861,17020.0,17019.0,0.04]
[1673193240442,3.28862703,17020.0,17019.0,0.04]
[1673193240691,2.69343861,17020.0,17019.0,0.04]
[1673193241195,1.79399741,17020.0,17019.0,0.10514042]
[1673193241448,1.79399741,17020.0,17019.0,1.9257939]
[1673193241449,2.32171102,17020.0,17019.0,1.9257939]
[1673193241702,2.32171102,17020.0,17019.0,1.31458673]
[1673193241703,1.79399741,17020.0,17019.0,1.31458673]
[1673193241956,1.78549741,17020.0,17019.0,1.31458673]
[1673193242220,1.19795341,17020.0,17019.0,1.92521753]
[1673193242715,0.61040941,17020.0,17019.0,1.92521753]
[1673193243334,1.05034385,17020.0,17019.0,1.92021753]
[1673193243980,1.13812302,17020.0,17019.0,1.92021753]
[1673193244476,1.43812302,17020.0,17019.0,1.92021753]
[1673193245471,0.61040941,17020.0,17019.0,1.92021753]
[1673193245726,1.13812302,17020.0,17019.0,1.92021753]
[1673193246475,1.13812302,17020.0,17019.0,1.92029324]
[1673193247008,1.13812302,17020.0,17019.0,1.34122247]
[1673193247026,1.13812302,17020.0,17019.0,1.92029324]
[1673193247322,1.43812302,17020.0,17019.0,1.85515282]
[1673193248852,0.91040941,17020.0,17019.0,1.85515282]
[1673193249104,1.43904194,17020.0,17019.0,1.85515282]
[1673193249358,1.13904194,17020.0,17019.0,2.0521481]
[1673193250664,1.43904194,17020.0,17019.0,2.0521481]
[1673193250878,1.13904194,17020.0,17019.0,2.0521481]
[1673193251628,0.55149794,17020.0,17019.0,2.0521481]
[1673193252137,0.02286541,17020.0,17019.0,2.0521481]
[1673193252619,0.55149794,17020.0,17019.0,2.0521481]
[1673193253376,0.02286541,17020.0,17019.0,2.0521481]
[1673193254916,0.46326267,17020.0,17019.0,2.0521481]
[1673193255168,0.46320595,17020.0,17019.0,2.0521481]
[1673193256826,0.81544778,17020.0,17019.0,2.1673481]
[1673193257132,1.07962263,17020.0,17019.0,2.5353041]
[1673193257400,0.6392191,17020.0,17019.0,2.7549261]
[1673193257916,0.6392191,17020.0,17019.0,2.12455056]
[1673193258179,0.6392191,17020.0,17019.0,2.72455056]
[1673193258538,0.44247815,17021.0,17020.0,0.17617439]
[1673193258539,0.35437944,17021.0,17020.0,0.17617439]
[1673193258789,0.35437944,17021.0,17020.0,2.42210819]
[1673193259312,0.00213761,17021.0,17020.0,2.42210819]
[1673193259571,0.35437944,17021.0,17020.0,2.42210819]
[1673193260102,0.35437944,17021.0,17020.0,3.00965219]
[1673193260354,0.00500761,17021.0,17020.0,3.63189124]
[1673193260602,0.35724944,17021.0,17020.0,3.63189124]
[1673193260853,0.34791319,17021.0,17020.0,3.63189124]
[1673193261098,0.47127763,17022.0,17020.0,3.6315307]
[1673193261350,0.03093709,17022.0,17021.0,2.08320404]
[1673193261858,0.02997644,17022.0,17021.0,2.08320404]
[1673193262361,0.47031698,17022.0,17021.0,2.08320404]
[1673193262616,0.47531698,17022.0,17021.0,2.21420404]
[1673193263472,0.47531698,17022.0,17021.0,2.88306311]
[1673193264201,0.03497644,17022.0,17021.0,2.88306311]
[1673193264457,0.47531698,17022.0,17021.0,2.88306311]
[1673193264955,0.47531698,17022.0,17021.0,2.51991004]
[1673193266497,0.47531698,17022.0,17021.0,2.52096601]
[1673193267004,0.03497644,17022.0,17021.0,2.52096601]
[1673193267511,0.29877356,17022.0,17021.0,2.52154027]
[1673193267769,1.36279198,17022.0,17021.0,2.52154027]
[1673193268016,1.06279198,17022.0,17021.0,2.52154027]
[1673193268261,1.36279198,17022.0,17021.0,2.52154027]
[1673193268518,1.36279198,17022.0,17021.0,2.15469827]
[1673193268782,1.36279198,17022.0,17021.0,2.15969827]
[1673193269039,1.05279198,17022.0,17021.0,2.15969827]
[1673193269305,1.35279198,17022.0,17021.0,2.41046554]
[1673193269551,1.05279198,17022.0,17021.0,2.41046554]
[1673193269803,1.35279198,17022.0,17021.0,2.41046554]
[1673193270059,1.50006178,17022.0,17021.0,1.4908392]
[1673193270312,1.50006178,17022.0,17021.0,1.3180392]
[1673193270313,2.53570931,17022.0,17021.0,1.3180392]
[1673193270571,2.53570931,17022.0,17021.0,1.3230392]
[1673193270838,2.53557397,17022.0,17021.0,0.72007077]
[1673193271104,2.53557397,17022.0,17021.0,1.32479593]
[1673193271354,2.53557397,17022.0,17021.0,0.72007077]
[1673193271859,2.53557397,17022.0,17021.0,0.141]
[1673193272118,2.00707678,17022.0,17021.0,0.141]
[1673193272878,2.0902502,17022.0,17021.0,0.015]
[1673193273130,2.6837252,17022.0,17021.0,0.125]
[1673193273401,2.6777252,17022.0,17021.0,0.015]
[1673193273652,2.68212078,17022.0,17021.0,0.125]
[1673193274421,3.27207307,17022.0,17021.0,0.125]
[1673193274941,2.68212078,17022.0,17021.0,0.125]
[1673193275187,2.68212078,17022.0,17021.0,0.13]
[1673193275426,2.08853678,17022.0,17021.0,0.13]
[1673193276916,3.28248062,17022.0,17021.0,0.16061744]
[1673193277412,2.98248062,17022.0,17021.0,0.16561744]
[1673193278164,1.80125078,17022.0,17021.0,0.16561744]
[1673193278442,1.80125078,17022.0,17021.0,0.77101424]
[1673193278691,1.80125078,17022.0,17021.0,0.77224891]
[1673193278938,2.32914837,17022.0,17021.0,0.77224891]
[1673193279446,2.32914837,17022.0,17021.0,0.77724891]
[1673193280709,2.10125078,17022.0,17021.0,0.77601424]
[1673193281748,2.10125078,17022.0,17021.0,0.78107596]
[1673193282237,1.50092644,17022.0,17021.0,0.78107596]
[1673193282486,2.02909337,17022.0,17021.0,0.78107596]
[1673193282736,2.02909337,17022.0,17021.0,1.34448616]
[1673193284026,2.02909337,17022.0,17021.0,1.34344412]
[1673193284282,2.02909337,17022.0,17021.0,11.34344412]
[1673193284531,1.72909337,17022.0,17021.0,11.71028612]
[1673193285293,2.02909337,17022.0,17021.0,11.71028612]
[1673193285802,2.02909337,17022.0,17021.0,11.67966868]
[1673193286603,1.44161837,17022.0,17021.0,11.67966868]
[1673193287383,1.14161837,17022.0,17021.0,11.67966868]
[1673193289716,1.44161837,17022.0,17021.0,11.67966868]
[1673193290231,1.14161837,17022.0,17021.0,11.67966868]
[1673193290496,1.14161837,17022.0,17021.0,12.27354581]
[1673193291515,0.61345144,17022.0,17021.0,12.27354581]
[1673193292237,1.14161837,17022.0,17021.0,12.27354581]
[1673193292974,1.72909337,17022.0,17021.0,11.67966868]
[1673193293217,2.02909337,17022.0,17021.0,11.67966868]
[1673193293786,1.72909337,17022.0,17021.0,11.67956608]
[1673193295808,2.02909337,17022.0,17021.0,11.67956608]
[1673193296054,2.01469337,17022.0,17021.0,11.67956608]
[1673193296304,1.71469337,17022.0,17021.0,12.27344321]
[1673193297061,2.01469337,17022.0,17021.0,12.27344321]
[1673193297312,1.71469337,17022.0,17021.0,12.27344321]
[1673193297805,2.01469337,17022.0,17021.0,12.27344321]
[1673193298054,1.71469337,17022.0,17021.0,12.27344321]
[1673193298321,2.01469337,17022.0,17021.0,12.27344321]
[1673193298830,2.01469337,17022.0,17021.0,12.85251398]
[1673193299337,2.01469337,17022.0,17021.0,12.27344321]
[1673193299588,2.01469337,17022.0,17021.0,12.25863685]
[1673193300383,1.48652644,17022.0,17021.0,12.25863685]
[1673193300662,2.01493922,17022.0,17021.0,12.25863685]
[1673193301387,1.48666178,17022.0,17021.0,11.68442293]
[1673193301636,2.06419274,17022.0,17021.0,11.68448887]
[1673193301886,2.06419274,17022.0,17021.0,11.68278055]
[1673193302620,2.65794758,17022.0,17021.0,11.68278055]
[1673193302883,2.06419274,17022.0,17021.0,11.68278055]
[1673193303137,2.65166774,17022.0,17021.0,11.68278055]
[1673193303405,2.65166774,17022.0,17021.0,11.68083934]
[1673193305197,3.24542258,17022.0,17021.0,11.31399734]
[1673193305443,3.24542258,17022.0,17021.0,11.3139314]
[1673193306430,3.24542258,17022.0,17021.0,11.6807734]
[1673193306677,3.24542258,17022.0,17021.0,11.3139314]
[1673193306937,3.24542258,17022.0,17021.0,10.71128496]
[1673193307454,3.24542258,17022.0,17021.0,11.313505]
[1673193307970,2.65166774,17022.0,17021.0,10.71128496]
[1673193308282,2.65166774,17022.0,17021.0,11.31351556]
[1673193308483,3.24635944,17022.0,17021.0,11.31351556]
[1673193308735,3.24635944,17022.0,17021.0,11.31345363]
[1673193309239,3.24635944,17022.0,17021.0,11.31357821]
[1673193309466,3.24635944,17022.0,17021.0,11.31345363]
[1673193310273,3.24635944,17022.0,17021.0,11.31357821]
[1673193310529,3.09251517,17022.0,17021.0,10.81613871]
[1673193310786,3.08574831,17022.0,17021.0,10.81613871]
[1673193311004,2.69734297,17022.0,17021.0,10.81613871]
[1673193311251,2.69747831,17022.0,17021.0,10.13221419]
[1673193311510,2.10955347,17022.0,17021.0,10.13221419]
[1673193311762,2.64353279,17022.0,17021.0,10.81613871]
[1673193313501,2.64339745,17022.0,17021.0,10.81613871]
[1673193314017,2.62028898,17022.0,17021.0,10.13221419]
[1673193314255,2.62028898,17022.0,17021.0,10.81613871]
[1673193317059,2.62042432,17022.0,17021.0,10.81613871]
[1673193318298,2.62028898,17022.0,17021.0,10.81613871]
[1673193320559,2.62028898,17022.0,17021.0,11.39520948]
[1673193321337,3.21462392,17022.0,17021.0,11.39520948]
[1673193321589,3.17920723,17022.0,17021.0,11.39527244]
[1673193321853,2.87920723,17022.0,17021.0,11.39527244]
[1673193322879,2.28487229,17022.0,17021.0,11.39527244]
[1673193323141,2.58487229,17022.0,17021.0,11.39527244]
[1673193323478,3.17920723,17022.0,17021.0,11.39520948]
[1673193324402,3.17920723,17022.0,17021.0,11.39527244]
[1673193325150,3.17920723,17022.0,17021.0,11.39520948]
[1673193327776,3.17920723,17022.0,17021.0,11.39291283]
[1673193329687,3.17920723,17022.0,17021.0,11.39303261]
[1673193330251,2.58500763,17022.0,17021.0,11.39291283]
[1673193330494,2.58487229,17022.0,17021.0,11.39303261]
[1673193330759,2.61528898,17022.0,17021.0,11.39291283]
[1673193332587,2.61528898,17022.0,17021.0,11.39303261]
[1673193332838,2.61528898,17022.0,17021.0,11.86721765]
[1673193333118,2.61528898,17022.0,17021.0,11.39303261]
[1673193334443,2.61542432,17022.0,17021.0,11.39291283]
[1673193334695,2.61528898,17022.0,17021.0,11.39291283]
[1673193336812,2.61542432,17022.0,17021.0,11.39291283]
[1673193337325,2.61528898,17022.0,17021.0,11.39291283]
[1673193337875,2.61542432,17022.0,17021.0,11.39291283]
[1673193338386,2.61542432,17022.0,17021.0,11.39308389]
[1673193338387,2.61528898,17022.0,17021.0,11.39308389]
[1673193338637,2.61528898,17022.0,17021.0,11.39291283]
[1673193340154,2.61528898,17022.0,17021.0,11.39308389]
[1673193341217,2.61528898,17022.0,17021.0,11.39291283]
[1673193342478,2.57987229,17022.0,17021.0,11.39291283]
[1673193343510,2.61528898,17022.0,17021.0,11.39291283]
[1673193344510,2.58000763,17022.0,17021.0,11.39291283]
[1673193345370,2.57987229,17022.0,17021.0,11.39431535]
[1673193345603,2.61542432,17022.0,17021.0,11.39291283]
[1673193345865,2.57987229,17022.0,17021.0,11.39291283]
[1673193346549,2.61542432,17022.0,17021.0,11.39291283]
[1673193346789,2.61528898,17022.0,17021.0,11.39291283]
[1673193347802,2.61542432,17022.0,17021.0,11.39291283]
[1673193348068,2.61528898,17022.0,17021.0,11.39291283]
[1673193348840,2.61542432,17022.0,17021.0,11.39291283]
[1673193350563,3.02739374,17022.0,17021.0,11.39291283]
[1673193350831,3.65480023,17022.0,17021.0,11.39291283]
[1673193351315,3.65466489,17022.0,17021.0,11.39791283]
[1673193351560,3.64866489,17022.0,17021.0,11.28799529]
[1673193351819,3.65066489,17022.0,17021.0,11.31799529]
[1673193352299,3.65066489,17022.0,17021.0,11.3180654]
[1673193352537,3.65066489,17022.0,17021.0,11.31799529]
[1673193352760,3.6152482,17022.0,17021.0,11.31799529]
[1673193353525,3.65066489,17022.0,17021.0,11.3180654]
[1673193353771,3.65066489,17022.0,17021.0,11.31799529]
[1673193354278,3.65066489,17022.0,17021.0,11.4999807]
[1673193354657,3.65066489,17022.0,17021.0,11.50005081]
[1673193355155,2.78408898,17022.0,17021.0,11.49997098]
[1673193355680,3.65066489,17022.0,17021.0,11.49990087]
[1673193355925,2.78408898,17022.0,17021.0,11.49990087]
[1673193359411,2.61128898,17022.0,17021.0,11.49990087]
[1673193359815,2.61128898,17022.0,17021.0,11.31816721]
[1673193360058,2.61142432,17022.0,17021.0,11.31791546]
[1673193360307,2.10041813,17022.0,17021.0,11.31791546]
[1673193360546,2.63854221,17022.0,17021.0,11.31791546]
[1673193361046,2.63854221,17022.0,17021.0,11.49990087]
[1673193361319,2.63854221,17022.0,17021.0,11.49613987]
[1673193362051,2.63854221,17022.0,17021.0,11.31415446]
[1673193363042,2.63854221,17022.0,17021.0,11.49568875]
[1673193363563,2.63854221,17022.0,17021.0,12.08956588]
[1673193364067,2.63854221,17022.0,17021.0,11.90828334]
[1673193364562,2.10041813,17022.0,17021.0,11.31440621]
[1673193364820,2.69550676,17022.0,17021.0,11.31440621]
[1673193365075,2.69550676,17022.0,17021.0,11.49568875]
[1673193366067,2.69550676,17022.0,17021.0,11.31440621]
[1673193367070,2.69550676,17022.0,17021.0,11.49615058]
[1673193367584,3.27830616,17022.0,17021.0,11.49615058]
[1673193368092,3.27830616,17022.0,17021.0,11.31440621]
[1673193368339,3.27830616,17022.0,17021.0,11.31415446]
[1673193368581,2.68321753,17022.0,17021.0,11.31471865]
[1673193369068,2.68321753,17022.0,17021.0,11.49646302]
[1673193369986,2.68321753,17022.0,17021.0,11.31471865]
[1673193371045,2.68321753,17022.0,17021.0,11.49646302]
[1673193371558,3.27816752,17022.0,17021.0,11.49646302]
[1673193372050,3.27816752,17022.0,17021.0,11.31471865]
[1673193373071,2.69536812,17022.0,17021.0,12.58630053]
[1673193373327,2.10041813,17022.0,17021.0,12.58630053]
[1673193373602,2.69536812,17022.0,17021.0,11.9924234]
[1673193373858,2.69536812,17022.0,17021.0,11.81067903]
[1673193374866,2.10041813,17022.0,17021.0,11.9924234]
[1673193375902,2.10041813,17022.0,17021.0,11.81067903]
[1673193376394,2.10041813,17022.0,17021.0,12.36315429]
[1673193376967,2.69536812,17022.0,17021.0,12.52472704]
[1673193377239,2.69536812,17022.0,17021.0,11.97225178]
[1673193377991,3.37710814,17022.0,17021.0,11.31415446]
[1673193378234,3.37710814,17022.0,17021.0,11.31474085]
[1673193378484,3.37710814,17022.0,17021.0,11.31415446]
[1673193378753,2.78215815,17022.0,17021.0,11.31415446]
[1673193379011,2.78229349,17022.0,17021.0,11.47570501]
[1673193379266,2.78215815,17022.0,17021.0,11.47570501]
[1673193379513,2.78215815,17022.0,17021.0,11.4762914]
[1673193379789,2.78215815,17022.0,17021.0,11.47570501]
[1673193380016,2.78229349,17022.0,17021.0,11.31415446]
[1673193380270,2.78215815,17022.0,17021.0,11.31415446]
[1673193380519,2.78215815,17022.0,17021.0,11.314919]
[1673193380775,2.78215815,17022.0,17021.0,11.31415446]
[1673193381029,2.78229349,17022.0,17021.0,11.47570501]
[1673193381303,2.78215815,17022.0,17021.0,11.47570501]
[1673193381551,3.12414336,17022.0,17021.0,11.47570501]
[1673193381810,2.78215815,17022.0,17021.0,11.47570501]
[1673193383115,2.78229349,17022.0,17021.0,11.47570501]
[1673193383373,2.78215815,17022.0,17021.0,11.47570501]
[1673193384120,2.10055347,17022.0,17021.0,10.79178049]
[1673193384372,2.72746057,17022.0,17021.0,10.79178049]
[1673193384627,3.10598799,17022.0,17021.0,10.79178049]
[1673193384880,3.34487171,17022.0,17021.0,10.05115917]
[1673193385137,3.34487171,17022.0,17021.0,10.05108548]
[1673193385911,2.96712938,17022.0,17021.0,10.05108548]
[1673193386151,2.96712938,17022.0,17021.0,10.21263603]
[1673193386403,4.31222938,17022.0,17021.0,10.21263603]
[1673193386659,3.62695347,17022.0,17021.0,9.46101503]
[1673193386926,3.63167229,17022.0,17021.0,8.01940048]
[1673193387181,11.85581492,17022.0,17021.0,7.31267348]
[1673193387468,11.61813703,17022.0,17021.0,6.64741248]
[1673193387944,11.61813703,17022.0,17021.0,6.61741248]
[1673193387945,11.61613703,17022.0,17021.0,6.61741248]
[1673193388814,11.69113703,17022.0,17021.0,6.62741248]
[1673193388994,11.68113703,17022.0,17021.0,6.62741248]
[1673193389252,11.19467229,17022.0,17021.0,6.62741248]
[1673193389518,12.71512573,17022.0,17021.0,6.62741248]
[1673193389777,12.06150608,17022.0,17021.0,6.62741248]
[1673193390059,12.0614624,17022.0,17021.0,6.62741248]
[1673193390296,11.19467229,17022.0,17021.0,6.62741248]
[1673193390809,10.9864556,17022.0,17021.0,6.62741248]
[1673193391061,11.85307719,17022.0,17021.0,6.62741248]
[1673193391594,11.88849388,17022.0,17021.0,6.62741248]
[1673193392947,11.91719879,17022.0,17021.0,6.62741248]
[1673193393197,11.0505772,17022.0,17021.0,6.62741248]
[1673193393716,11.0405772,17022.0,17021.0,6.62741248]
[1673193394009,11.0405772,17022.0,17021.0,6.27095348]
[1673193394263,11.0405772,17022.0,17021.0,5.22600248]
[1673193395833,11.01187229,17022.0,17021.0,5.22600248]
[1673193396801,11.01187229,17022.0,17021.0,5.77523148]
[1673193397044,11.04174413,17022.0,17021.0,5.77523148]
[1673193398047,11.01187229,17022.0,17021.0,5.77523148]
[1673193398547,9.26887085,17022.0,17021.0,5.77523148]
[1673193399067,11.03129585,17022.0,17021.0,5.93677873]
[1673193399328,11.06145774,17022.0,17021.0,5.93677873]
[1673193400062,11.06145774,17022.0,17021.0,5.77523148]
[1673193401066,11.03129585,17022.0,17021.0,5.93677873]
[1673193401862,11.89672839,17022.0,17021.0,5.77523148]
[1673193402860,11.89672839,17022.0,17021.0,5.93677873]
[1673193403847,11.89672839,17022.0,17021.0,5.77523148]
[1673193405621,11.03129585,17022.0,17021.0,4.89848348]
[1673193405866,11.03129585,17022.0,17021.0,3.02980845]
[1673193405867,11.06020724,17022.0,17021.0,3.02980845]
[1673193406163,11.06020724,17022.0,17021.0,1.8829857]
[1673193406972,11.06020724,17022.0,17021.0,1.72143845]
[1673193407223,11.03129585,17022.0,17021.0,1.69643845]
[1673193407491,11.03129585,17022.0,17021.0,1.16008721]
[1673193408036,11.03129585,17022.0,17021.0,1.34293594]
[1673193408565,11.03129585,17022.0,17021.0,0.90607406]
[1673193408819,11.03129585,17022.0,17021.0,0.24910456]
[1673193409114,11.03129585,17022.0,17018.0,0.57907077]
[1673193409390,1.1728,17019.0,17018.0,0.57907077]
[1673193409654,2.58425793,17019.0,17018.0,0.57907077]
[1673193409902,2.38671555,17019.0,17018.0,0.57907077]
[1673193410161,2.94968055,17019.0,17018.0,0.57907077]
[1673193410401,2.01842262,17019.0,17016.0,1.17827915]
[1673193410685,1.1728,17017.0,17016.0,0.48691577]
[1673193410953,1.4728,17017.0,17016.0,0.48691577]
[1673193411186,1.52143551,17017.0,17016.0,0.48691577]
[1673193411702,1.69080906,17017.0,17016.0,0.49576577]
[1673193412205,1.69080906,17017.0,17016.0,0.52176577]
[1673193412206,1.69280906,17017.0,17016.0,0.52176577]
[1673193413324,1.6929444,17017.0,17016.0,0.52176577]
[1673193413612,4.45291029,17017.0,17015.0,0.000838]
[1673193413730,1.05213409,17016.0,17015.0,0.000838]
[1673193413981,2.00092409,17016.0,17015.0,0.000838]
[1673193414233,2.0410596,17016.0,17015.0,0.000838]
[1673193414770,2.0410596,17016.0,17015.0,0.006838]
[1673193415004,2.0410596,17016.0,17015.0,0.000838]
[1673193415268,2.1570596,17016.0,17015.0,0.006838]
[1673193416291,2.1570596,17016.0,17013.0,0.00090933]
[1673193416551,1.1726,17014.0,17013.0,0.00090933]
[1673193416853,1.41877789,17014.0,17013.0,0.00090933]
[1673193417104,9.19403551,17014.0,17013.0,0.00090933]
[1673193417677,9.30703551,17014.0,17010.0,0.00133355]
[1673193417916,0.80583354,17011.0,17010.0,0.00133355]
[1673193418154,0.77352602,17011.0,17010.0,0.00133355]
[1673193418382,0.87598364,17011.0,17010.0,0.00133355]
[1673193418614,0.88448364,17011.0,17010.0,0.00133355]
[1673193418851,1.41136361,17011.0,17010.0,0.00133355]
[1673193419892,3.29249561,17011.0,17010.0,0.00133355]
[1673193420393,2.87561564,17011.0,17010.0,0.00133355]
[1673193420641,10.96866337,17011.0,17010.0,0.00133355]
[1673193420873,10.37561564,17011.0,17010.0,0.00133355]
[1673193421117,10.96866337,17011.0,17010.0,0.00133355]
[1673193421369,10.96879871,17011.0,17010.0,0.00133355]
[1673193421619,11.14159871,17011.0,17010.0,0.00133355]
[1673193422103,11.07519358,17011.0,17010.0,0.00133355]
[1673193422884,11.07532349,17011.0,17010.0,0.00133355]
[1673193423117,11.07532419,17011.0,17010.0,0.00133355]
[1673193423882,11.07532419,17011.0,17007.0,0.7003001]
[1673193423883,10.64535606,17011.0,17007.0,0.82627354]
[1673193424130,0.43871778,17009.0,17007.0,0.82627354]
[1673193424377,0.43871778,17009.0,17008.0,0.84811064]
[1673193424633,0.43871778,17009.0,17008.0,1.01991064]
[1673193424882,0.43871778,17009.0,17008.0,2.1825534]
[1673193424883,0.940678,17009.0,17008.0,2.1825534]
[1673193425140,0.940678,17009.0,17008.0,0.344]
[1673193425636,1.18735589,17009.0,17008.0,0.344]
[1673193425883,1.362843,17009.0,17008.0,0.344]
[1673193426124,1.77478669,17009.0,17008.0,0.344]
[1673193426400,1.72381247,17009.0,17008.0,0.344]
[1673193426901,1.89929958,17009.0,17008.0,0.344]
[1673193427387,1.72382527,17009.0,17008.0,0.344]
[1673193427873,1.72382527,17009.0,17008.0,0.1718]
[1673193427874,1.72396061,17009.0,17008.0,0.1718]
[1673193428118,1.4605946,17009.0,17008.0,0.1718]
[1673193428355,1.4605946,17009.0,17008.0,0.49569614]
[1673193428356,1.28509469,17009.0,17008.0,0.49569614]
[1673193428603,1.28509469,17009.0,17008.0,0.3441]
[1673193428840,1.24981334,17009.0,17008.0,0.3441]
[1673193429555,1.249678,17009.0,17008.0,0.3441]
[1673193430050,1.24981334,17009.0,17008.0,0.3441]
[1673193430569,1.249678,17009.0,17008.0,1.48051737]
[1673193430805,0.479339,17009.0,17008.0,1.48051737]
[1673193431098,0.479339,17009.0,17008.0,2.2261628]
[1673193431346,0.009,17009.0,17008.0,2.5930048]
[1673193432820,0.009,17009.0,17008.0,2.42401509]
[1673193433063,0.009,17009.0,17008.0,1.57248966]
[1673193434073,0.00913534,17009.0,17008.0,1.20564766]
[1673193434326,0.009,17009.0,17008.0,1.77765332]
[1673193434578,0.009,17009.0,17008.0,1.57248966]
[1673193434878,0.009,17009.0,17008.0,1.85239655]
[1673193436944,0.00913534,17009.0,17008.0,1.57248966]
[1673193437190,0.009,17009.0,17008.0,1.57285534]
[1673193439452,0.00913534,17009.0,17008.0,1.57248966]
[1673193439689,0.00913534,17009.0,17008.0,1.20564766]
[1673193439938,0.00913534,17009.0,17008.0,1.57285534]
[1673193439939,0.009,17009.0,17008.0,1.57285534]
[1673193440186,0.009,17009.0,17008.0,1.57248966]
[1673193440426,0.009,17009.0,17008.0,1.20564766]
[1673193440427,0.00913534,17009.0,17008.0,1.20564766]
[1673193440683,0.009,17009.0,17008.0,1.20564766]
[1673193440925,0.009,17009.0,17008.0,1.20601334]
[1673193441191,0.009,17009.0,17008.0,1.20564766]
[1673193441443,0.18449991,17009.0,17008.0,1.57248966]
[1673193441699,0.18449991,17009.0,17008.0,1.20564766]
[1673193442198,0.18449991,17009.0,17008.0,1.57248966]
[1673193442450,0.18449991,17009.0,17008.0,1.20564766]
[1673193442451,0.65483891,17009.0,17008.0,1.20564766]
[1673193442712,1.21806958,17009.0,17008.0,1.19064766]
[1673193442966,1.21806958,17009.0,17008.0,1.19101334]
[1673193443215,1.21806958,17009.0,17008.0,1.55748966]
[1673193443948,1.21806958,17009.0,17008.0,1.55785534]
[1673193444217,1.21806958,17009.0,17008.0,1.19101334]
[1673193444468,0.95483891,17009.0,17008.0,1.46945923]
[1673193444756,1.21806958,17009.0,17008.0,1.83630123]
[1673193446040,0.74773058,17009.0,17008.0,1.83630123]
[1673193446254,0.74786592,17009.0,17008.0,1.55748966]
[1673193446498,0.74773058,17009.0,17008.0,1.55748966]
[1673193446746,0.92320489,17009.0,17008.0,1.55748966]
[1673193447004,0.62320489,17009.0,17008.0,1.55748966]
[1673193447276,0.92320489,17009.0,17008.0,1.55748966]
[1673193447536,0.92334023,17009.0,17008.0,1.83589898]
[1673193447780,0.92320489,17009.0,17008.0,1.83589898]
[1673193448048,0.92320489,17009.0,17008.0,1.55748966]
[1673193448893,0.62320489,17009.0,17008.0,1.55748966]
[1673193449172,1.098692,17009.0,17008.0,1.55748966]
[1673193449341,1.098692,17009.0,17008.0,1.55820368]
[1673193449580,1.098692,17009.0,17008.0,1.8366844]
[1673193450517,1.09882734,17009.0,17008.0,1.83597038]
[1673193450766,1.098692,17009.0,17008.0,1.83635347]
[1673193451009,1.098692,17009.0,17008.0,1.83597038]
[1673193451262,1.10005214,17009.0,17008.0,1.83597038]
[1673193451504,0.74771778,17009.0,17008.0,1.83597038]
[1673193452537,0.74785312,17009.0,17008.0,1.83597038]
[1673193452790,0.74771778,17009.0,17008.0,1.83597038]
[1673193453288,0.74771778,17009.0,17008.0,1.66367038]
[1673193453548,0.74771778,17009.0,17008.0,1.29682838]
[1673193454030,0.74771778,17009.0,17008.0,1.29721147]
[1673193454283,0.44771778,17009.0,17008.0,1.29721147]
[1673193455021,0.44771778,17009.0,17008.0,1.47778556]
[1673193455271,0.44771778,17009.0,17008.0,2.04939402]
[1673193455535,0.44771778,17009.0,17008.0,1.47778556]
[1673193456035,0.44771778,17009.0,17008.0,1.19892175]
[1673193456781,0.74771778,17009.0,17008.0,1.19892175]
[1673193457035,0.74771778,17009.0,17008.0,1.19960268]
[1673193457287,0.74771778,17009.0,17008.0,1.19892175]
[1673193457556,0.309,17009.0,17008.0,1.19892175]
[1673193457813,0.309,17009.0,17008.0,1.44143213]
[1673193458067,0.309,17009.0,17008.0,1.19892175]
[1673193458321,0.309,17009.0,17008.0,1.19960268]
[1673193458585,0.68951072,17009.0,17008.0,1.19960268]
[1673193458860,0.249,17009.0,17008.0,1.19960268]
[1673193459353,0.249,17009.0,17008.0,1.44218115]
[1673193460058,0.249,17009.0,17008.0,1.80902315]
[1673193460818,0.249,17009.0,17008.0,1.80874021]
[1673193461080,0.249,17009.0,17008.0,1.44150022]
[1673193461324,0.249,17009.0,17008.0,1.80834222]
[1673193462089,0.249,17009.0,17008.0,1.19892175]
[1673193462600,0.77577321,17009.0,17008.0,1.19892175]
[1673193462851,0.249,17009.0,17008.0,1.19892175]
[1673193463385,0.77577321,17009.0,17008.0,1.19892175]
[1673193463947,0.77577321,17009.0,17008.0,1.19974392]
[1673193464449,0.77577321,17009.0,17008.0,1.44233651]
[1673193465013,0.77577321,17009.0,17008.0,1.44193355]
[1673193465265,0.77590855,17009.0,17008.0,1.19892175]
[1673193465517,0.77577321,17009.0,17008.0,1.19892175]
[1673193466014,0.77577321,17009.0,17008.0,1.19934096]
[1673193466290,0.77590855,17009.0,17008.0,1.19892175]
[1673193466550,0.77577321,17009.0,17008.0,1.19892175]
[1673193467047,0.77577321,17009.0,17008.0,1.19934096]
[1673193467297,0.52677321,17009.0,17008.0,1.19934096]
[1673193467538,0.52677321,17010.0,17008.0,1.76746517]
[1673193467806,0.52677321,17010.0,17009.0,1.25982348]
[1673193468072,0.52677321,17010.0,17009.0,1.827628]
[1673193468324,0.52677321,17010.0,17009.0,1.47796561]
[1673193468581,0.4410893,17010.0,17009.0,3.54584964]
[1673193468860,0.52776125,17011.0,17010.0,0.3643607]
[1673193469112,0.52677321,17011.0,17010.0,1.81098343]
[1673193469356,0.52677321,17012.0,17010.0,1.81098343]
[1673193469602,0.52677321,17012.0,17011.0,1.73397902]
[1673193469856,0.52677321,17012.0,17011.0,1.17102034]
[1673193470150,0.52677321,17012.0,17011.0,1.73391146]
[1673193470624,0.53977321,17012.0,17011.0,1.78491146]
[1673193470891,0.53977321,17012.0,17011.0,2.43959227]
[1673193472316,0.53977321,17012.0,17011.0,1.87670115]
[1673193472483,0.83977321,17012.0,17011.0,1.87670115]
[1673193473912,0.53977321,17012.0,17011.0,1.87670115]
[1673193474660,0.83977321,17012.0,17011.0,1.87670115]
[1673193475923,0.83977321,17012.0,17011.0,1.59802115]
[1673193479444,0.313,17012.0,17011.0,1.59802115]
[1673193479696,0.83977321,17012.0,17011.0,1.59802115]
[1673193480200,0.013,17012.0,17011.0,1.59302115]
[1673193482259,0.45345726,17012.0,17011.0,1.59302115]
[1673193482793,0.45345726,17012.0,17011.0,2.1560222]
[1673193483034,0.45345726,17012.0,17011.0,2.15588678]
[1673193483549,0.45345726,17012.0,17011.0,1.59302115]
[1673193485055,0.45345726,17012.0,17011.0,1.7735054]
[1673193485856,0.4533707,17012.0,17011.0,1.7735054]
[1673193486106,0.013,17012.0,17011.0,1.7735054]